fUSD/lending_fUSD_20250617
["ID","MTS","AMOUNT","RATE_DAILY","PERIOD"]
[366333716,1750193465596,-490.0,0.00016438,2]
[366333717,1750193465606,-151.0,0.00016438,2]
[366333718,1750193465616,-490.0,0.00016438,2]
[366333719,1750193465625,-490.0,0.00016438,2]
[366333720,1750193465635,-490.0,0.00016438,2]
[366333721,1750193465645,-1968.35,0.00016438,2]
[366333722,1750193465655,-490.0,0.00016438,2]
[366333723,1750193465665,-883.3,0.00016438,2]
[366333724,1750193465675,-490.0,0.00016438,2]
[366333725,1750193465685,-2477.67,0.00016438,2]
[366333726,1750193465694,-2528.41,0.00016438,2]
[366333727,1750193465704,-666.11,0.00016438,2]
[366333728,1750193465714,-490.0,0.00016438,2]
[366333729,1750193465723,-490.0,0.00016438,2]
[366333730,1750193465733,-481.97038062,0.00016438,2]
[366333731,1750193465742,-2129.46,0.00016438,2]
[366333732,1750193465753,-490.0,0.00016438,2]
[366333733,1750193465763,-4543.58,0.00016438,2]
[366333734,1750193465773,-490.0,0.00016438,2]
[366333735,1750193465782,-251.89374371,0.00016438,2]
[366333736,1750193465793,-490.0,0.00016438,2]
[366333737,1750193465803,-490.0,0.00016438,2]
[366333738,1750193465812,-490.0,0.00016438,2]
[366333739,1750193465822,-490.0,0.00016438,2]
[366333740,1750193465832,-1232.78,0.00016438,2]
[366333741,1750193465841,-1277.46,0.00016438,2]
[366333742,1750193465851,-7730.42,0.00016438,2]
[366333743,1750193465861,-490.0,0.00016438,2]
[366333744,1750193465871,-557.24,0.00016438,2]
[366333745,1750193465881,-490.0,0.00016438,2]
[366333746,1750193465891,-4157.26,0.00016438,2]
[366333747,1750193465900,-1035.58,0.00016438,2]
[366333748,1750193465910,-945.58,0.00016438,2]
[366333749,1750193465920,-490.0,0.00016438,2]
[366333750,1750193465930,-490.0,0.00016438,2]
[366333751,1750193465939,-490.0,0.00016438,2]
[366333752,1750193465949,-490.0,0.00016438,2]
[366333753,1750193465960,-490.0,0.00016438,2]
[366333754,1750193465970,-598.7,0.00016438,2]
[366333755,1750193465980,-1670.06,0.00016438,2]
[366333756,1750193465989,-490.92474936,0.00016438,2]
[366333757,1750193465999,-396.46654518,0.00016438,2]
[366333758,1750193466009,-490.0,0.00016438,2]
[366333759,1750193466019,-1113.7,0.00016438,2]
[366333760,1750193466029,-490.0,0.00016438,2]
[366333761,1750193466039,-490.0,0.00016438,2]
[366333762,1750193466048,-3639.13,0.00016438,2]
[366333763,1750193466058,-490.0,0.00016438,2]
[366333764,1750193466068,-490.0,0.00016438,2]
[366333765,1750193466078,-490.0,0.00016438,2]
[366333766,1750193466087,-490.0,0.00016438,2]
[366333767,1750193466097,-1083.96,0.00016438,2]
[366333768,1750193466107,-490.0,0.00016438,2]
[366333769,1750193466117,-490.0,0.00016438,2]
[366333770,1750193466127,-2784.33,0.00016438,2]
[366333771,1750193466137,-500.0,0.00016438,2]
[366333772,1750193466151,-490.0,0.00016438,2]
[366333773,1750193466160,-490.0,0.00016438,2]
[366333774,1750193466171,-490.0,0.00016438,2]
[366333775,1750193466180,-490.0,0.00016438,2]
[366333776,1750193466190,-491.11056352,0.00016438,2]
[366333777,1750193466200,-1871.64,0.00016438,2]
[366333778,1750193466209,-490.0,0.00016438,2]
[366333779,1750193466219,-1636.81,0.00016438,2]
[366333780,1750193466230,-1108.99,0.00016438,2]
[366333781,1750193466240,-490.0,0.00016438,2]
[366333782,1750193466250,-490.0,0.00016438,2]
[366333783,1750193466260,-1344.74,0.00016438,2]
[366333784,1750193466269,-490.0,0.00016438,2]
[366333785,1750193466279,-490.0,0.00016438,2]
[366333786,1750193466289,-490.0,0.00016438,2]
[366333787,1750193466299,-557.0,0.00016438,2]
[366333788,1750193466308,-2029.93,0.00016438,2]
[366333789,1750193466318,-1176.7,0.00016438,2]
[366333790,1750193466327,-490.0,0.00016438,2]
[366333791,1750193466337,-490.0,0.00016438,2]
[366333792,1750193466347,-860.81,0.00016438,2]
[366333793,1750193466356,-1734.14,0.00016438,2]
[366333794,1750193466366,-490.0,0.00016438,2]
[366333795,1750193466377,-1123.14,0.00016438,2]
[366333796,1750193466386,-500.0,0.00016438,2]
[366333797,1750193466395,-490.0,0.00016438,2]
[366333798,1750193466405,-500.0,0.00016438,2]
[366333799,1750193466415,-500.0,0.00016438,2]
[366333800,1750193466425,-839.52,0.00016438,2]
[366333801,1750193466434,-173.39,0.00016438,2]
[366333802,1750193466444,-490.0,0.00016438,2]
[366333803,1750193466454,-490.0,0.00016438,2]
[366333804,1750193466464,-490.0,0.00016438,2]
[366333805,1750193466473,-490.0,0.00016438,2]
[366333806,1750193466483,-490.0,0.00016438,2]
[366333807,1750193466492,-1608.15,0.00016438,2]
[366333808,1750193466503,-512.0,0.00016438,2]
[366333809,1750193466513,-490.0,0.00016438,2]
[366333810,1750193466523,-953.25,0.00016438,2]
[366333811,1750193466532,-490.0,0.00016438,2]
[366333812,1750193466542,-490.0,0.00016438,2]
[366333813,1750193466552,-1576.57,0.00016438,2]
[366333814,1750193466561,-19508.37,0.00016438,2]
[366333815,1750193466571,-490.0,0.00016438,2]
[366333816,1750193466581,-1471.29,0.00016438,2]
[366333817,1750193466591,-490.0,0.00016438,2]
[366333818,1750193466600,-2481.36,0.00016438,2]
[366333819,1750193466610,-490.0,0.00016438,2]
[366333820,1750193466620,-490.0,0.00016438,2]
[366333821,1750193466630,-490.0,0.00016438,2]
[366333822,1750193466639,-490.0,0.00016438,2]
[366333823,1750193466649,-490.0,0.00016438,2]
[366333824,1750193466659,-490.0,0.00016438,2]
[366333825,1750193466669,-490.0,0.00016438,2]
[366333826,1750193466679,-490.0,0.00016438,2]
[366333827,1750193466688,-490.0,0.00016438,2]
[366333828,1750193466698,-1141.45,0.00016438,2]
[366333829,1750193466709,-427.16042913,0.00016438,2]
[366333830,1750193466721,-2900.95,0.00016438,2]
[366333831,1750193466752,-490.0,0.00016438,2]
[366333832,1750193466772,-490.0,0.00016438,2]
[366333833,1750193466782,-490.0,0.00016438,2]
[366333834,1750193466792,-490.0,0.00016438,2]
[366333835,1750193466802,-490.0,0.00016438,2]
[366333836,1750193466812,-1294.52,0.00016438,2]
[366333837,1750193466822,-490.0,0.00016438,2]
[366333838,1750193466832,-825.16,0.00016438,2]
[366333839,1750193466842,-490.0,0.00016438,2]
[366333840,1750193466852,-490.0,0.00016438,2]
[366333841,1750193466862,-490.0,0.00016438,2]
[366333842,1750193466872,-490.0,0.00016438,2]
[366333843,1750193466882,-490.0,0.00016438,2]
[366333844,1750193466891,-490.0,0.00016438,2]
[366333845,1750193466901,-2014.62,0.00016438,2]
[366333846,1750193466911,-490.0,0.00016438,2]
[366333847,1750193466920,-1538.19,0.00016438,2]
[366333848,1750193466930,-880.22,0.00016438,2]
[366333849,1750193466940,-984.82,0.00016438,2]
[366333850,1750193466949,-490.0,0.00016438,2]
[366333851,1750193466959,-490.0,0.00016438,2]
[366333852,1750193466968,-490.0,0.00016438,2]
[366333853,1750193466978,-948.49,0.00016438,2]
[366333854,1750193466988,-491.51568208,0.00016438,2]
[366333855,1750193466998,-3718.65,0.00016438,2]
[366333856,1750193467007,-490.0,0.00016438,2]
[366333857,1750193467017,-1648.05,0.00016438,2]
[366333858,1750193467027,-490.0,0.00016438,2]
[366333859,1750193467038,-490.0,0.00016438,2]
[366333860,1750193467048,-490.0,0.00016438,2]
[366333861,1750193467058,-490.0,0.00016438,2]
[366333862,1750193467068,-1109.93,0.00016438,2]
[366333863,1750193467078,-490.0,0.00016438,2]
[366333864,1750193467087,-490.0,0.00016438,2]
[366333865,1750193467096,-806.22,0.00016438,2]
[366333866,1750193467106,-500.0,0.00016438,2]
[366333867,1750193467116,-490.0,0.00016438,2]
[366333868,1750193467125,-500.0,0.00016438,2]
[366333869,1750193467135,-500.0,0.00016438,2]
[366333870,1750193467147,-490.0,0.00016438,2]
[366333871,1750193467156,-500.0,0.00016438,2]
[366333872,1750193467166,-500.0,0.00016438,2]
[366333873,1750193467175,-490.0,0.00016438,2]
[366333874,1750193467186,-500.0,0.00016438,2]
[366333875,1750193467196,-500.0,0.00016438,2]
[366333876,1750193467206,-500.0,0.00016438,2]
[366333877,1750193467216,-500.0,0.00016438,2]
[366333878,1750193467226,-151.0,0.00016438,2]
[366333879,1750193467235,-151.0,0.00016438,2]
[366333880,1750193467245,-151.0,0.00016438,2]
[366333881,1750193467255,-490.0,0.00016438,2]
[366333882,1750193467265,-151.0,0.00016438,2]
[366333883,1750193467274,-151.0,0.00016438,2]
[366333884,1750193467284,-151.0,0.00016438,2]
[366333885,1750193467293,-2543.37,0.00016438,2]
[366333886,1750193467303,-151.0,0.00016438,2]
[366333887,1750193467313,-1155.24,0.00016438,2]
[366333888,1750193467322,-1791.28,0.00016438,2]
[366333889,1750193467332,-490.0,0.00016438,2]
[366333890,1750193467342,-151.0,0.00016438,2]
[366333891,1750193467351,-490.0,0.00016438,2]
[366333892,1750193467361,-1716.3,0.00016438,2]
[366333893,1750193467371,-151.0,0.00016438,2]
[366333894,1750193467380,-1802.04,0.00016438,2]
[366333895,1750193467390,-490.0,0.00016438,2]
[366333896,1750193467400,-151.0,0.00016438,2]
[366333897,1750193467410,-490.0,0.00016438,2]
[366333898,1750193467419,-151.0,0.00016438,2]
[366333899,1750193467429,-172.805901,0.00016438,2]
[366333900,1750193467438,-490.0,0.00016438,2]
[366333901,1750193467447,-153.654775,0.00016438,2]
[366333902,1750193467457,-172.805901,0.00016438,2]
[366333903,1750193467467,-925.14,0.00016438,2]
[366333904,1750193467476,-172.805901,0.00016438,2]
[366333905,1750193467486,-2962.38,0.00016438,2]
[366333906,1750193467495,-172.805901,0.00016438,2]
[366333907,1750193467506,-490.0,0.00016438,2]
[366333908,1750193467515,-2963.43,0.00016438,2]
[366333909,1750193467525,-172.805901,0.00016438,2]
[366333910,1750193467534,-490.0,0.00016438,2]
[366333911,1750193467544,-172.805901,0.00016438,2]
[366333912,1750193467553,-172.805901,0.00016438,2]
[366333913,1750193467562,-6123.81,0.00016438,2]
[366333914,1750193467572,-490.0,0.00016438,2]
[366333915,1750193467581,-172.805901,0.00016438,2]
[366333916,1750193467591,-490.0,0.00016438,2]
[366333917,1750193467600,-172.805901,0.00016438,2]
[366333918,1750193467610,-490.0,0.00016438,2]
[366333919,1750193467619,-490.0,0.00016438,2]
[366333920,1750193467632,-172.805901,0.00016438,2]
[366333921,1750193467642,-6498.21,0.00016438,2]
[366333922,1750193467652,-490.0,0.00016438,2]
[366333923,1750193467662,-172.805901,0.00016438,2]
[366333924,1750193467672,-922.97,0.00016438,2]
[366333925,1750193467682,-172.805901,0.00016438,2]
[366333926,1750193467692,-172.805901,0.00016438,2]
[366333927,1750193467701,-172.805901,0.00016438,2]
[366333928,1750193467711,-172.805901,0.00016438,2]
[366333929,1750193467721,-490.0,0.00016438,2]
[366333930,1750193467731,-781.85,0.00016438,2]
[366333931,1750193467741,-490.0,0.00016438,2]
[366333932,1750193467752,-490.0,0.00016438,2]
[366333933,1750193467762,-490.0,0.00016438,2]
[366333934,1750193467772,-490.0,0.00016438,2]
[366333935,1750193467782,-490.0,0.00016438,2]
[366333936,1750193467792,-791.89,0.00016438,2]
[366333937,1750193467801,-1494.41,0.00016438,2]
[366333938,1750193467810,-490.0,0.00016438,2]
[366333939,1750193467820,-490.0,0.00016438,2]
[366333940,1750193467830,-707.6,0.00016438,2]
[366333941,1750193467840,-1621.1,0.00016438,2]
[366333942,1750193467849,-2286.99,0.00016438,2]
[366333943,1750193467858,-490.0,0.00016438,2]
[366333944,1750193467868,-490.0,0.00016438,2]
[366333945,1750193467877,-976.39,0.00016438,2]
[366333946,1750193467887,-8879.26,0.00016438,2]
[366333947,1750193467896,-823.45,0.00016438,2]
[366333948,1750193467906,-485.11322886,0.00016438,2]
[366333949,1750193467915,-172.805901,0.00016438,2]
[366333950,1750193467925,-490.0,0.00016438,2]
[366333951,1750193467934,-172.805901,0.00016438,2]
[366333952,1750193467945,-3109.31,0.00016438,2]
[366333953,1750193467954,-172.805901,0.00016438,2]
[366333954,1750193467964,-490.0,0.00016438,2]
[366333955,1750193467973,-490.0,0.00016438,2]
[366333956,1750193467983,-172.805901,0.00016438,2]
[366333957,1750193467992,-408.20005968,0.00016438,2]
[366333958,1750193468002,-172.805909,0.00016438,2]
[366333959,1750193468012,-490.0,0.00016438,2]
[366333960,1750193468022,-490.0,0.00016438,2]
[366333961,1750193468031,-490.0,0.00016438,2]
[366333962,1750193468041,-490.0,0.00016438,2]
[366333963,1750193468051,-490.0,0.00016438,2]
[366333964,1750193468061,-490.0,0.00016438,2]
[366333965,1750193468072,-490.0,0.00016438,2]
[366333966,1750193468081,-2516.57,0.00016438,2]
[366333967,1750193468091,-490.0,0.00016438,2]
[366333968,1750193468101,-556.17812809,0.00016438,2]
[366333969,1750193468111,-1988.77,0.00016438,2]
[366333970,1750193468120,-1641.65,0.00016438,2]
[366333971,1750193468130,-490.0,0.00016438,2]
[366333972,1750193468144,-490.0,0.00016438,2]
[366333973,1750193468155,-490.0,0.00016438,2]
[366333974,1750193468165,-490.0,0.00016438,2]
[366333975,1750193468175,-490.0,0.00016438,2]
[366333976,1750193468185,-490.0,0.00016438,2]
[366333977,1750193468195,-151.0,0.00016438,2]
[366333978,1750193468205,-707.08,0.00016438,2]
[366333979,1750193468215,-151.0,0.00016438,2]
[366333980,1750193468225,-151.0,0.00016438,2]
[366333981,1750193468236,-151.0,0.00016438,2]
[366333982,1750193468245,-1923.06,0.00016438,2]
[366333983,1750193468256,-832.84,0.00016438,2]
[366333984,1750193468266,-490.0,0.00016438,2]
[366333985,1750193468276,-151.0,0.00016438,2]
[366333986,1750193468286,-579.10620846,0.00016438,2]
[366333987,1750193468297,-490.0,0.00016438,2]
[366333988,1750193468307,-151.0,0.00016438,2]
[366333989,1750193468316,-500.0,0.00016438,2]
[366333990,1750193468326,-151.0,0.00016438,2]
[366333991,1750193468336,-500.0,0.00016438,2]
[366333992,1750193468346,-151.0,0.00016438,2]
[366333993,1750193468356,-1027.91,0.00016438,2]
[366333994,1750193468366,-500.0,0.00016438,2]
[366333995,1750193468375,-490.0,0.00016438,2]
[366333996,1750193468385,-500.0,0.00016438,2]
[366333997,1750193468395,-500.0,0.00016438,2]
[366333998,1750193468405,-500.0,0.00016438,2]
[366333999,1750193468414,-500.0,0.00016438,2]
[366334000,1750193468424,-9716.47,0.00016438,2]
[366334001,1750193468434,-490.0,0.00016438,2]
[366334002,1750193468444,-151.0,0.00016438,2]
[366334003,1750193468454,-490.0,0.00016438,2]
[366334004,1750193468464,-490.0,0.00016438,2]
[366334005,1750193468474,-151.378863,0.00016438,2]
[366334006,1750193468484,-1030.51,0.00016438,2]
[366334007,1750193468494,-490.0,0.00016438,2]
[366334008,1750193468504,-490.0,0.00016438,2]
[366334009,1750193468514,-490.0,0.00016438,2]
[366334010,1750193468523,-849.52,0.00016438,2]
[366334011,1750193468533,-570.65,0.00016438,2]
[366334012,1750193468543,-809.82,0.00016438,2]
[366334013,1750193468552,-6859.29,0.00016438,2]
[366334014,1750193468562,-490.0,0.00016438,2]
[366334015,1750193468572,-490.0,0.00016438,2]
[366334016,1750193468581,-490.0,0.00016438,2]
[366334017,1750193468591,-490.0,0.00016438,2]
[366334018,1750193468601,-447.77744276,0.00016438,2]
[366334019,1750193468610,-426.32042853,0.00016438,2]
[366334020,1750193468620,-3831.57,0.00016438,2]
[366334021,1750193468630,-881.07,0.00016438,2]
[366334022,1750193468640,-490.0,0.00016438,2]
[366334023,1750193468650,-700.02,0.00016438,2]
[366334024,1750193468659,-490.0,0.00016438,2]
[366334025,1750193468669,-490.0,0.00016438,2]
[366334026,1750193468679,-490.0,0.00016438,2]
[366334027,1750193468689,-4570.61,0.00016438,2]
[366334028,1750193468699,-808.93,0.00016438,2]
[366334029,1750193468709,-490.0,0.00016438,2]
[366334030,1750193468719,-490.0,0.00016438,2]
[366334031,1750193468729,-543.24,0.00016438,2]
[366334032,1750193468738,-151.0,0.00016438,2]
[366334033,1750193468751,-151.0,0.00016438,2]
[366334034,1750193468760,-698.58,0.00016438,2]
[366334035,1750193468770,-490.0,0.00016438,2]
[366334036,1750193468780,-151.0,0.00016438,2]
[366334037,1750193468916,-151.0,0.00016438,2]
[366334038,1750193468927,-490.0,0.00016438,2]
[366334039,1750193468937,-1200.47,0.00016438,2]
[366334040,1750193468947,-151.0,0.00016438,2]
[366334041,1750193468957,-151.0,0.00016438,2]
[366334042,1750193468967,-560.0,0.00016438,2]
[366334043,1750193468976,-3948.32,0.00016438,2]
[366334044,1750193468986,-151.0,0.00016438,2]
[366334045,1750193468996,-151.0,0.00016438,2]
[366334046,1750193469007,-151.0,0.00016438,2]
[366334047,1750193469017,-151.0,0.00016438,2]
[366334048,1750193469026,-151.0,0.00016438,2]
[366334049,1750193469036,-151.0,0.00016438,2]
[366334050,1750193469046,-1154.61,0.00016438,2]
[366334051,1750193469056,-151.0,0.00016438,2]
[366334052,1750193469065,-1361.04,0.00016438,2]
[366334053,1750193469075,-151.0,0.00016438,2]
[366334054,1750193469084,-490.0,0.00016438,2]
[366334055,1750193469095,-625.24,0.00016438,2]
[366334056,1750193469104,-490.0,0.00016438,2]
[366334057,1750193469114,-151.0,0.00016438,2]
[366334058,1750193469123,-490.0,0.00016438,2]
[366334059,1750193469133,-151.0,0.00016438,2]
[366334060,1750193469143,-490.0,0.00016438,2]
[366334061,1750193469156,-661.66,0.00016438,2]
[366334062,1750193469166,-5566.44,0.00016438,2]
[366334063,1750193469176,-151.0,0.00016438,2]
[366334064,1750193469187,-151.0,0.00016438,2]
[366334065,1750193469198,-490.0,0.00016438,2]
[366334066,1750193469208,-3478.09,0.00016438,2]
[366334067,1750193469218,-490.0,0.00016438,2]
[366334068,1750193469230,-1203.48,0.00016438,2]
[366334069,1750193469240,-490.0,0.00016438,2]
[366334070,1750193469250,-159.977291,0.00016438,2]
[366334071,1750193469260,-151.0,0.00016438,2]
[366334072,1750193469269,-490.0,0.00016438,2]
[366334073,1750193469279,-2997.24,0.00016438,2]
[366334074,1750193469288,-151.0,0.00016438,2]
[366334075,1750193469298,-159.977291,0.00016438,2]
[366334076,1750193469307,-490.0,0.00016438,2]
[366334077,1750193469317,-151.0,0.00016438,2]
[366334078,1750193469327,-159.977291,0.00016438,2]
[366334079,1750193469336,-257.694763,0.00016438,2]
[366334080,1750193469346,-159.977291,0.00016438,2]
[366334081,1750193469355,-490.0,0.00016438,2]
[366334082,1750193469366,-159.977291,0.00016438,2]
[366334083,1750193469375,-159.977291,0.00016438,2]
[366334084,1750193469386,-490.0,0.00016438,2]
[366334085,1750193469395,-508.36,0.00016438,2]
[366334086,1750193469405,-159.977291,0.00016438,2]
[366334087,1750193469415,-490.0,0.00016438,2]
[366334088,1750193469425,-159.977291,0.00016438,2]
[366334089,1750193469434,-159.977291,0.00016438,2]
[366334090,1750193469444,-490.0,0.00016438,2]
[366334091,1750193469455,-159.977291,0.00016438,2]
[366334092,1750193469464,-916.01,0.00016438,2]
[366334093,1750193469474,-159.977291,0.00016438,2]
[366334094,1750193469484,-490.0,0.00016438,2]
[366334095,1750193469494,-490.0,0.00016438,2]
[366334096,1750193469503,-159.977291,0.00016438,2]
[366334097,1750193469513,-5026.08,0.00016438,2]
[366334098,1750193469523,-159.977291,0.00016438,2]
[366334099,1750193469533,-490.0,0.00016438,2]
[366334100,1750193469542,-490.0,0.00016438,2]
[366334101,1750193469553,-490.0,0.00016438,2]
[366334102,1750193469563,-159.977291,0.00016438,2]
[366334103,1750193469573,-490.0,0.00016438,2]
[366334104,1750193469582,-159.977291,0.00016438,2]
[366334105,1750193469591,-159.977291,0.00016438,2]
[366334106,1750193469602,-490.0,0.00016438,2]
[366334107,1750193469611,-159.977291,0.00016438,2]
[366334108,1750193469621,-490.0,0.00016438,2]
[366334109,1750193469631,-159.977291,0.00016438,2]
[366334110,1750193469640,-159.977291,0.00016438,2]
[366334111,1750193469650,-159.977283,0.00016438,2]
[366334112,1750193469660,-972.07,0.00016438,2]
[366334113,1750193469670,-490.0,0.00016438,2]
[366334114,1750193469679,-490.0,0.00016438,2]
[366334115,1750193469689,-490.0,0.00016438,2]
[366334116,1750193469699,-460.0,0.00016438,2]
[366334117,1750193469708,-490.0,0.00016438,2]
[366334118,1750193469718,-490.0,0.00016438,2]
[366334119,1750193469728,-490.0,0.00016438,2]
[366334120,1750193469738,-490.0,0.00016438,2]
[366334121,1750193469748,-490.0,0.00016438,2]
[366334122,1750193469758,-490.0,0.00016438,2]
[366334123,1750193469771,-748.49,0.00016438,2]
[366334124,1750193469781,-490.0,0.00016438,2]
[366334125,1750193469792,-490.0,0.00016438,2]
[366334126,1750193469803,-468.61126213,0.00016438,2]
[366334127,1750193469812,-702.48,0.00016438,2]
[366334128,1750193469822,-2809.19,0.00016438,2]
[366334129,1750193469833,-2125.38,0.00016438,2]
[366334130,1750193469844,-490.0,0.00016438,2]
[366334131,1750193469855,-490.0,0.00016438,2]
[366334132,1750193469865,-304.59445371,0.00016438,2]
[366334133,1750193469874,-470.24451365,0.00016438,2]
[366334134,1750193469884,-1205.29,0.00016438,2]
[366334135,1750193469894,-490.0,0.00016438,2]
[366334136,1750193469905,-490.0,0.00016438,2]
[366334137,1750193469915,-490.0,0.00016438,2]
[366334138,1750193469925,-1427.43,0.00016438,2]
[366334139,1750193469935,-1279.38,0.00016438,2]
[366334140,1750193469946,-490.0,0.00016438,2]
[366334141,1750193469957,-1160.24,0.00016438,2]
[366334142,1750193469967,-491.91314651,0.00016438,2]
[366334143,1750193469977,-5293.43,0.00016438,2]
[366334144,1750193469987,-490.0,0.00016438,2]
[366334145,1750193469999,-490.0,0.00016438,2]
[366334146,1750193470009,-490.0,0.00016438,2]
[366334147,1750193470019,-22615.88,0.00016438,2]
[366334148,1750193470029,-491.33,0.00016438,2]
[366334149,1750193470039,-3678.85,0.00016438,2]
[366334150,1750193470050,-490.0,0.00016438,2]
[366334151,1750193470062,-490.0,0.00016438,2]
[366334152,1750193470072,-719.22,0.00016438,2]
[366334153,1750193470082,-303.96687288,0.00016438,2]
[366334154,1750193470092,-490.0,0.00016438,2]
[366334155,1750193470101,-3591.21,0.00016438,2]
[366334156,1750193470111,-490.0,0.00016438,2]
[366334157,1750193470122,-490.0,0.00016438,2]
[366334158,1750193470132,-679.25,0.00016438,2]
[366334159,1750193470142,-490.0,0.00016438,2]
[366334160,1750193470154,-1054.25,0.00016438,2]
[366334161,1750193470164,-584.64,0.00016438,2]
[366334162,1750193470174,-490.0,0.00016438,2]
[366334163,1750193470183,-534.6,0.00016438,2]
[366334164,1750193470194,-490.0,0.00016438,2]
[366334165,1750193470204,-490.0,0.00016438,2]
[366334166,1750193470214,-490.0,0.00016438,2]
[366334167,1750193470226,-490.0,0.00016438,2]
[366334168,1750193470236,-1713.47,0.00016438,2]
[366334169,1750193470246,-490.0,0.00016438,2]
[366334170,1750193470256,-664.75,0.00016438,2]
[366334171,1750193470267,-837.94,0.00016438,2]
[366334172,1750193470277,-490.0,0.00016438,2]
[366334173,1750193470286,-490.0,0.00016438,2]
[366334174,1750193470297,-490.0,0.00016438,2]
[366334175,1750193470306,-927.67,0.00016438,2]
[366334176,1750193470316,-1367.46,0.00016438,2]
[366334177,1750193470326,-490.0,0.00016438,2]
[366334178,1750193470336,-1814.79,0.00016438,2]
[366334179,1750193470346,-490.0,0.00016438,2]
[366334180,1750193470356,-4435.25,0.00016438,2]
[366334181,1750193470366,-469.30676665,0.00016438,2]
[366334182,1750193470375,-417.32103828,0.00016438,2]
[366334183,1750193472472,-72.67896172,0.00016438,2]
[366334184,1750193472483,-490.0,0.00016438,2]
[366334185,1750193472493,-884.52,0.00016438,2]
[366334186,1750193472502,-322.9216383,0.00016438,2]
[366334187,1750193472515,-167.0783617,0.00016438,2]
[366334188,1750193472525,-500.35451269,0.00016438,2]
[366334189,1750193472535,-62.56254,0.00016438,2]
[366334190,1750193472547,-6260.24815738,0.00016438,2]
[366334191,1750193472578,-18526.59930262,0.00016438,2]
[366334192,1750193472588,-1362.23,0.00016438,2]
[366334193,1750193472598,-490.0,0.00016438,2]
[366334194,1750193472608,-490.0,0.00016438,2]
[366334195,1750193472620,-490.0,0.00016438,2]
[366334196,1750193472630,-1132.3,0.00016438,2]
[366334197,1750193472641,-490.0,0.00016438,2]
[366334198,1750193472651,-1733.65,0.00016438,2]
[366334199,1750193472661,-490.0,0.00016438,2]
[366334200,1750193472673,-490.0,0.00016438,2]
[366334201,1750193472684,-490.0,0.00016438,2]
[366334202,1750193472695,-325.5621508,0.00016438,2]
[366334203,1750193472705,-490.0,0.00016438,2]
[366334204,1750193472715,-490.0,0.00016438,2]
[366334205,1750193472725,-490.0,0.00016438,2]
[366334206,1750193472735,-3561.22,0.00016438,2]
[366334207,1750193472746,-499.34045451,0.00016438,2]
[366334208,1750193472756,-490.0,0.00016438,2]
[366334209,1750193472766,-18995.4,0.00016438,2]
[366334210,1750193472776,-802.81,0.00016438,2]
[366334211,1750193472786,-329.84981168,0.00016438,2]
[366334212,1750193472796,-490.0,0.00016438,2]
[366334213,1750193472806,-490.0,0.00016438,2]
[366334214,1750193472816,-490.0,0.00016438,2]
[366334215,1750193472826,-490.0,0.00016438,2]